bitfinex/quotes_SOLUSD_20250903
["timestamp","ask_amount","ask_price","bid_price","bid_amount"]
[1756887570478,37.04,210.71,210.7,0.03]
[1756887570479,39.87076727,210.71,210.7,0.03]
[1756887573679,0.68,210.74,210.7,0.03]
[1756887573890,2.83076727,210.72,210.7,0.03]
[1756887574094,37.04,210.71,210.7,0.03]
[1756887574390,40.55076727,210.71,210.7,0.03]
[1756887575061,0.68,210.74,210.7,0.03]
[1756887575262,2.83076727,210.71,210.7,0.03]
[1756887577091,3.51076727,210.71,210.7,0.03]
[1756887578584,21.85222051,210.71,210.7,0.03]
[1756887579168,17.10636128,210.71,210.7,0.03]
[1756887579505,43.10636128,210.71,210.7,0.03]
[1756887580076,47.85222051,210.71,210.7,0.03]
[1756887580596,43.10636128,210.71,210.7,0.03]
[1756887580891,80.18636128,210.71,210.7,0.03]
[1756887581973,79.50636128,210.71,210.7,0.03]
[1756887582283,37.08,210.71,210.7,0.03]
[1756887583076,37.08,210.71,210.68,5.06653098]
[1756887585394,0.71,210.74,210.68,4.37653098]
[1756887585697,30.43044699,210.72,210.68,5.06653098]
[1756887585898,37.08,210.71,210.68,5.06653098]
[1756887586989,41.51044699,210.71,210.7,0.03]
[1756887587402,42.22044699,210.71,210.7,0.03]
[1756887589405,55.816041,210.71,210.7,0.03]
[1756887590104,60.56190023,210.71,210.7,0.03]
[1756887593786,60.56190023,210.71,210.67,0.03]
[1756887593787,39.59559401,210.68,210.67,0.03]
[1756887594010,81.066041,210.68,210.67,0.03]
[1756887594209,81.776041,210.68,210.67,0.03]
[1756887596917,86.52257602,210.68,210.67,0.03]
[1756887597218,86.80689916,210.68,210.67,0.03]
[1756887598994,13.59559401,210.67,210.65,0.03]
[1756887599191,188.75036414,210.66,210.64,0.03]
[1756887599420,55.046041,210.65,210.63,0.03]
[1756887599594,18.026041,210.64,210.63,0.03]
[1756887599914,19.02036414,210.64,210.63,0.03]
[1756887601120,55.756041,210.64,210.63,0.03]
[1756887601299,60.50347738,210.64,210.63,0.03]
[1756887603203,22.77347738,210.64,210.63,0.03]
[1756887603416,59.79347738,210.64,210.63,0.03]
[1756887603618,22.77347738,210.64,210.63,0.03]
[1756887603803,59.79347738,210.64,210.63,0.03]
[1756887604009,60.50347738,210.64,210.63,0.03]
[1756887607023,60.78780052,210.64,210.63,0.03]
[1756887607198,62.69151991,210.64,210.63,0.03]
[1756887607920,60.78780052,210.64,210.63,0.03]
[1756887609109,18.026041,210.64,210.63,0.03]
[1756887609429,55.006041,210.64,210.63,0.03]
[1756887609610,60.46347738,210.64,210.63,0.03]
[1756887612226,55.716041,210.64,210.63,0.03]
[1756887612429,55.026041,210.64,210.63,0.7]
[1756887612630,55.026041,210.64,210.63,0.03]
[1756887613331,13.59559401,210.64,210.63,0.03]
[1756887613510,55.026041,210.64,210.63,0.7]
[1756887614132,81.026041,210.64,210.63,0.7]
[1756887614333,44.026041,210.64,210.63,0.7]
[1756887614523,81.006041,210.64,210.63,0.03]
[1756887617107,44.026041,210.64,210.63,0.03]
[1756887617308,0.06,210.71,210.63,5.13044699]
[1756887617621,4.43044699,210.68,210.64,0.67]
[1756887617918,41.45044699,210.67,210.64,0.67]
[1756887618127,37.02,210.66,210.64,0.67]
[1756887618435,37.02,210.66,210.64,5.41734109]
[1756887618631,37.02,210.66,210.65,0.67]
[1756887620030,37.02,210.66,210.63,0.03]
[1756887620031,41.45044699,210.66,210.63,0.03]
[1756887620206,4.43044699,210.64,210.63,0.7]
[1756887620406,41.45044699,210.64,210.63,0.7]
[1756887621630,37.02,210.64,210.63,0.7]
[1756887621822,4.43044699,210.65,210.63,5.44766177]
[1756887622027,37.02,210.64,210.63,4.77766177]
[1756887622220,37.0,210.64,210.63,9.20810876]
[1756887622534,37.0,210.64,210.63,5.44766177]
[1756887622832,37.06,210.64,210.63,5.44766177]
[1756887624015,0.06,210.64,210.63,9.87810876]
[1756887625736,1e-08,210.67,210.64,0.28432314]
[1756887626033,1e-08,210.67,210.66,4.71477013]
[1756887626539,1e-08,210.67,210.66,5.38477013]
[1756887627136,0.06,210.69,210.66,8.84002621]
[1756887627137,1e-08,210.69,210.66,8.84002621]
[1756887627340,1e-08,210.69,210.68,4.71477013]
[1756887627731,37.02,210.73,210.68,21.99764272]
[1756887627931,37.02,210.73,210.72,4.43044699]
[1756887628112,37.02,210.73,210.72,5.10044699]
[1756887629036,37.02,210.73,210.72,5.41563401]
[1756887629344,37.02,210.73,210.72,9.846081]
[1756887631340,37.02,210.73,210.72,5.41563401]
[1756887631510,37.02,210.73,210.72,9.846081]
[1756887631943,37.02,210.73,210.72,5.41563401]
[1756887632123,37.02,210.73,210.72,4.74563401]
[1756887632431,37.02,210.73,210.72,5.41563401]
[1756887633026,37.02,210.73,210.72,4.74563401]
[1756887633431,37.02,210.73,210.7,4.74608448]
[1756887634245,37.02,210.73,210.7,5.41608448]
[1756887634846,37.02,210.73,210.7,4.74608448]
[1756887636042,37.02,210.73,210.69,4.74630974]
[1756887636344,41.45044699,210.73,210.68,0.04]
[1756887636524,4.43044699,210.7,210.68,0.04]
[1756887636727,36.98,210.69,210.68,0.04]
[1756887637127,41.41044699,210.69,210.68,0.04]
[1756887637318,42.09044699,210.69,210.68,0.04]
[1756887637955,0.68,210.69,210.68,0.04]
[1756887638248,42.09044699,210.69,210.68,0.04]
[1756887639351,36.98,210.69,210.68,0.04]
[1756887639522,41.41044699,210.69,210.68,0.04]
[1756887640945,26.0,210.7,210.68,0.07]
[1756887641252,0.06,210.74,210.69,4.43044699]
[1756887641430,36.98,210.73,210.7,0.67]
[1756887641828,36.98,210.73,210.71,0.71]
[1756887642043,36.98,210.73,210.72,0.71]
[1756887642630,36.98,210.73,210.72,9.886081]
[1756887643026,41.41044699,210.73,210.69,4.74630974]
[1756887643225,5.11044699,210.72,210.69,4.74630974]
[1756887643425,3.51533463,210.72,210.69,4.74630974]
[1756887643730,2.83533463,210.71,210.69,4.74630974]
[1756887643933,37.02,210.7,210.69,4.74630974]
[1756887644136,39.85533463,210.7,210.68,0.07]
[1756887644343,37.02,210.7,210.68,0.07]
[1756887644530,39.85533463,210.7,210.68,0.07]
[1756887644732,2.83533463,210.7,210.68,0.07]
[1756887644934,37.02,210.69,210.68,4.81648435]
[1756887645551,37.02,210.69,210.68,0.07]
[1756887645730,37.02,210.69,210.68,4.81653502]
[1756887647270,26.0,210.73,210.68,5.52653502]
[1756887647430,37.02,210.72,210.71,2.83533463]
[1756887647631,37.02,210.72,210.71,3.54533463]
[1756887648440,37.02,210.72,210.69,3.54533463]
[1756887648826,37.02,210.72,210.7,5.45608448]
[1756887651436,37.02,210.72,210.7,4.74608448]
[1756887651654,37.02,210.72,210.7,7.58141911]
[1756887651839,37.02,210.72,210.7,8.29141911]
[1756887653439,37.02,210.72,210.69,2.83533463]
[1756887653638,37.02,210.72,210.69,3.54533463]
[1756887653841,0.68,210.71,210.68,0.03]
[1756887654040,3.51533463,210.71,210.68,0.03]
[1756887655558,3.51533463,210.7,210.68,0.03]
[1756887655759,37.0,210.69,210.68,0.03]
[1756887655952,36.98,210.69,210.68,0.03]
[1756887656152,37.66,210.69,210.68,0.03]
[1756887656765,36.98,210.69,210.68,0.03]
[1756887658762,36.96,210.69,210.68,0.03]
[1756887659845,0.74,210.71,210.68,0.03]
[1756887660047,36.96,210.7,210.68,0.03]
[1756887660245,36.96,210.69,210.68,2.86533463]
[1756887660668,0.06,210.71,210.68,2.86533463]
[1756887660872,37.64,210.7,210.68,0.03]
[1756887661168,36.96,210.7,210.68,0.03]
[1756887661464,36.98,210.69,210.68,0.74]
[1756887661672,36.98,210.69,210.68,0.03]
[1756887662269,37.66,210.69,210.68,0.03]
[1756887662473,36.98,210.69,210.68,0.03]
[1756887665057,37.66,210.69,210.68,0.03]
[1756887665257,40.47533463,210.69,210.68,0.03]
[1756887666084,54.07092864,210.69,210.68,0.03]
[1756887667054,51.23559401,210.69,210.68,0.03]
[1756887667368,54.07092864,210.69,210.68,0.03]
[1756887669084,39.59559401,210.66,210.65,0.03]
[1756887669270,79.39092864,210.66,210.65,0.03]
[1756887669472,80.07092864,210.66,210.65,0.03]
[1756887672576,84.8179143,210.66,210.65,0.03]
[1756887672799,84.8179143,210.66,210.65,0.07]
[1756887673677,80.07092864,210.66,210.65,0.07]
[1756887674561,84.8179143,210.66,210.65,0.07]
[1756887674969,86.72136192,210.66,210.65,0.07]
[1756887675180,13.59559401,210.65,210.63,0.03]
[1756887675368,53.35092864,210.64,210.63,0.03]
[1756887675580,54.05092864,210.64,210.63,0.03]
[1756887675900,60.70190323,210.64,210.63,0.03]
[1756887679992,23.78190323,210.64,210.63,0.03]
[1756887680320,60.70190323,210.64,210.63,0.03]
[1756887681406,23.78190323,210.64,210.63,0.03]
[1756887681593,60.70190323,210.64,210.63,0.03]
[1756887681987,13.59559401,210.63,210.62,0.03]
[1756887682178,16.43092864,210.63,210.62,0.03]
[1756887682377,17.13092864,210.63,210.62,0.03]
[1756887682590,39.59559401,210.61,210.6,0.03]
[1756887682787,82.18626327,210.61,210.6,0.03]
[1756887682988,45.96626327,210.61,210.6,0.03]
[1756887683188,84.79007327,210.61,210.6,0.03]
[1756887683401,93.29607716,210.61,210.6,0.03]
[1756887684307,98.04418978,210.61,210.6,0.03]
[1756887684602,79.35092864,210.61,210.6,0.03]
[1756887686277,84.09904126,210.61,210.6,0.03]
[1756887686611,81.25455744,210.61,210.6,0.03]
[1756887687604,86.00267006,210.61,210.6,0.03]
[1756887688104,44.33455744,210.61,210.6,0.72]
[1756887688282,81.25455744,210.61,210.6,0.72]
[1756887688792,81.25455744,210.61,210.6,0.03]
[1756887688980,86.00267006,210.61,210.6,0.03]
[1756887689595,81.25455744,210.61,210.6,0.03]
[1756887690103,86.00267006,210.61,210.6,0.03]
[1756887690804,86.70267006,210.61,210.6,0.03]
[1756887691686,98.04400858,210.61,210.6,0.03]
[1756887691886,101.87944096,210.61,210.6,0.03]
[1756887692406,90.53810244,210.61,210.6,0.03]
[1756887695511,41.49922281,210.61,210.6,0.72]
[1756887695700,43.6559749,210.61,210.6,0.72]
[1756887696102,13.59559401,210.62,210.6,0.72]
[1756887696302,39.75533463,210.61,210.6,0.72]
[1756887696503,2.83533463,210.63,210.6,0.72]
[1756887696717,36.92,210.62,210.6,0.72]
[1756887697131,0.06,210.65,210.61,2.83533463]
[1756887697418,0.06,210.65,210.62,5.43784269]
[1756887697419,36.92,210.64,210.62,5.43784269]
[1756887697617,0.06,210.65,210.63,0.69]
[1756887697917,36.92,210.64,210.63,0.69]
[1756887700019,36.92,210.64,210.63,5.43766177]
[1756887700924,36.92,210.64,210.63,0.69]
[1756887701988,39.75533463,210.64,210.6,4.77832769]
[1756887702194,39.75533463,210.64,210.63,0.7]
[1756887702617,26.0,210.61,210.6,0.03]
[1756887702830,79.35092864,210.61,210.6,0.03]
[1756887703928,1.9035382,210.63,210.6,0.03]
[1756887704220,36.96,210.62,210.6,0.73]
[1756887704393,36.96,210.61,210.6,0.73]
[1756887705201,39.79533463,210.61,210.6,0.03]
[1756887705613,55.67130081,210.61,210.6,0.03]
[1756887706389,60.41941343,210.61,210.6,0.03]
[1756887706590,64.85512023,210.61,210.6,0.03]
[1756887706795,66.75893023,210.61,210.6,0.03]
[1756887707211,62.32322343,210.61,210.6,0.03]
[1756887708605,66.75893023,210.61,210.6,0.03]
[1756887711321,1.90381,210.61,210.6,0.03]
[1756887711523,36.94,210.61,210.6,0.73]
[1756887711919,41.3757068,210.61,210.6,0.73]
[1756887712703,41.4357068,210.61,210.6,0.73]
[1756887713215,41.4357068,210.61,210.6,5.47833808]
[1756887713216,0.06,210.61,210.6,5.47833808]
[1756887713422,37.02,210.61,210.6,5.47833808]
[1756887713928,0.06,210.61,210.6,5.47833808]
[1756887714114,37.02,210.61,210.6,5.47833808]
[1756887718438,37.02,210.61,210.6,0.73]
[1756887719636,41.4557068,210.61,210.6,0.03]
[1756887719846,42.1357068,210.61,210.6,0.03]
[1756887720143,60.47941343,210.61,210.6,0.03]
[1756887720444,64.91512023,210.61,210.6,0.03]
[1756887721012,65.19944337,210.61,210.6,0.03]
[1756887721741,67.10334399,210.61,210.6,0.03]
[1756887722344,22.46700761,210.6,210.59,0.1]
[1756887722937,23.14700761,210.6,210.59,0.1]
[1756887723143,0.28432314,210.59,210.58,0.03]
[1756887723340,0.28432314,210.59,210.57,0.03]
[1756887723341,55.25562395,210.59,210.57,0.03]
[1756887723546,0.28432314,210.57,210.56,0.03]
[1756887723844,18.34483413,210.56,210.5,0.03]
[1756887724136,55.93562395,210.55,210.5,0.03]
[1756887724660,13.59559401,210.53,210.5,0.03]
[1756887724944,18.03130081,210.53,210.5,0.03]
[1756887725124,55.67130081,210.53,210.5,0.03]
[1756887725444,55.95562395,210.53,210.5,0.03]
[1756887725942,60.70554082,210.53,210.5,0.03]
[1756887727881,39.59559401,210.51,210.5,0.03]
[1756887728021,80.97130081,210.51,210.5,0.03]
[1756887728222,81.65130081,210.51,210.5,0.03]
[1756887728417,26.0,210.47,210.4,0.7]
[1756887728625,4.4357068,210.41,210.4,0.7]
[1756887728822,26.0,210.37,210.36,0.7]
[1756887729138,67.3957068,210.37,210.36,0.7]
[1756887729540,13.59559401,210.36,210.25,4.75346887]
[1756887729740,4.4357068,210.34,210.28,4.4357068]
[1756887729951,37.04,210.33,210.29,9.89104466]
[1756887730151,37.04,210.33,210.3,0.7]
[1756887730358,41.4757068,210.32,210.3,0.7]
[1756887730645,39.59559401,210.36,210.3,0.7]
[1756887730646,4.4357068,210.35,210.3,0.7]
[1756887730854,37.1,210.34,210.31,4.4357068]
[1756887731058,37.12,210.33,210.32,0.7]
[1756887732064,47.20978039,210.33,210.32,0.7]
[1756887732245,10.08978039,210.34,210.32,0.7]
[1756887732451,37.12,210.33,210.32,5.45465788]
[1756887732657,37.12,210.33,210.32,0.7]
[1756887732963,47.20978039,210.33,210.32,0.7]
[1756887733542,10.08978039,210.34,210.32,0.7]
[1756887733763,37.12,210.33,210.32,0.7]
[1756887734069,37.12,210.33,210.29,4.75516612]
[1756887734445,37.12,210.33,210.3,0.71]
[1756887735070,47.20978039,210.33,210.3,0.71]
[1756887735450,10.08978039,210.32,210.31,0.71]
[1756887735646,0.68,210.41,210.32,0.71]
[1756887735854,26.0,210.36,210.32,0.71]
[1756887736051,47.20978039,210.35,210.33,0.71]
[1756887736571,10.08978039,210.34,210.33,0.71]
[1756887736873,47.20978039,210.35,210.33,0.71]
[1756887737672,47.20978039,210.35,210.31,0.71]
[1756887737843,10.08978039,210.34,210.3,4.75510373]
[1756887738048,10.08978039,210.34,210.29,10.08978039]
[1756887738049,47.22978039,210.33,210.31,0.71]
[1756887738260,47.22978039,210.33,210.32,0.71]
[1756887739455,37.14,210.33,210.32,0.71]
[1756887739662,47.22978039,210.33,210.32,0.71]
[1756887741383,47.22978039,210.33,210.29,0.71]
[1756887741546,10.08978039,210.31,210.29,0.71]
[1756887741754,37.1,210.3,210.29,0.71]
[1756887742060,37.1,210.3,210.25,10.08978039]
[1756887742256,37.1,210.3,210.26,10.08978039]
[1756887742461,37.1,210.3,210.26,14.84559448]
[1756887742678,37.1,210.3,210.27,0.71]
[1756887743056,37.1,210.3,210.28,0.71]
[1756887743249,37.1,210.3,210.26,4.75581409]
[1756887743250,37.1,210.3,210.29,0.71]
[1756887743848,10.08978039,210.32,210.29,0.71]
[1756887744070,37.08,210.31,210.3,0.71]
[1756887744456,37.08,210.31,210.27,10.08978039]
[1756887744661,10.08978039,210.3,210.27,0.71]
[1756887744872,37.08,210.29,210.27,0.71]
[1756887745582,10.08978039,210.28,210.25,0.71]
[1756887745884,37.08,210.27,210.25,0.71]
[1756887746659,37.08,210.27,210.24,4.75627597]
[1756887746859,10.08978039,210.29,210.26,0.71]
[1756887747083,37.08,210.28,210.26,0.71]
[1756887747389,10.08978039,210.29,210.26,0.71]
[1756887747564,37.08,210.27,210.26,0.71]
[1756887747760,37.08,210.27,210.19,12.17827865]
[1756887747960,37.08,210.27,210.23,10.08978039]
[1756887748777,37.08,210.27,210.24,4.75646879]
[1756887749084,10.08978039,210.29,210.24,4.75646879]
[1756887749284,133.4,210.42,210.28,10.08978039]
[1756887749500,0.68,210.37,210.31,10.08978039]
[1756887749696,10.08978039,210.35,210.29,10.08978039]
[1756887749986,37.1,210.34,210.29,10.08978039]
[1756887750288,47.86978039,210.34,210.28,10.08978039]
[1756887750585,47.86978039,210.34,210.29,4.75533786]
[1756887750780,47.18978039,210.34,210.29,4.75533786]
[1756887751080,47.18978039,210.34,210.24,4.75646879]
[1756887751081,10.08978039,210.3,210.24,4.75646879]
[1756887751271,37.12,210.29,210.24,14.84624918]
[1756887751472,0.68,210.28,210.23,5.49668522]
[1756887751659,0.68,210.28,210.23,15.58646561]
[1756887751865,10.08978039,210.3,210.24,10.79978039]
[1756887752072,37.12,210.29,210.24,10.79978039]
[1756887752273,47.88978039,210.29,210.24,0.71]
[1756887752677,0.68,210.28,210.23,14.87646561]
[1756887752871,47.20978039,210.29,210.23,4.78668522]
[1756887753083,10.08978039,210.25,210.23,0.03]
[1756887753277,10.08978039,210.24,210.23,0.03]
[1756887753584,42.25109091,210.24,210.23,0.03]
[1756887755072,37.12,210.24,210.23,0.03]
[1756887755692,13.59559401,210.28,210.23,0.03]
[1756887755693,18.04668492,210.28,210.23,5.19109091]
[1756887755891,37.12,210.27,210.23,5.19109091]
[1756887756188,41.57109091,210.27,210.23,0.74]
[1756887756484,37.12,210.26,210.23,0.03]
[1756887756787,41.57109091,210.26,210.23,0.03]
[1756887757368,4.45109091,210.25,210.23,0.03]
[1756887757577,5.13109091,210.25,210.23,0.03]
[1756887757762,5.13109091,210.24,210.23,0.03]
[1756887757967,4.45109091,210.24,210.23,0.03]
[1756887758283,13.59559401,210.28,210.23,0.03]
[1756887758484,41.57109091,210.27,210.23,0.03]
[1756887758672,37.8,210.27,210.23,0.03]
[1756887758864,37.12,210.27,210.23,5.49669504]
[1756887759065,37.12,210.27,210.23,9.23778595]
[1756887759664,37.12,210.27,210.23,9.94778595]
[1756887759876,4.45109091,210.28,210.23,5.49669504]
[1756887760091,37.12,210.26,210.24,0.71]
[1756887760297,26.0,210.29,210.25,0.71]
[1756887760468,37.1,210.28,210.25,0.71]
[1756887761002,37.1,210.28,210.25,4.75624256]
[1756887761188,37.1,210.27,210.25,9.91733347]
[1756887761602,37.1,210.27,210.26,10.09549422]
[1756887761887,10.81549422,210.33,210.26,10.75549422]
[1756887762064,37.1,210.32,210.28,10.09549422]
[1756887762267,37.1,210.32,210.28,10.75549422]
[1756887762468,37.1,210.32,210.28,10.09549422]
[1756887762678,37.82,210.32,210.26,0.66]
[1756887762992,47.91549422,210.32,210.27,4.75579017]
[1756887763172,0.72,210.31,210.27,4.75579017]
[1756887763490,0.72,210.3,210.27,4.75579017]
[1756887763682,37.1,210.29,210.27,4.75579017]
[1756887764995,37.1,210.29,210.26,4.75601636]
[1756887765196,37.1,210.29,210.26,15.51151058]
[1756887765374,37.1,210.29,210.27,10.09549422]
[1756887765577,37.1,210.28,210.27,0.66]
[1756887765775,37.08,210.28,210.27,0.66]
[1756887765977,37.08,210.28,210.26,4.75601636]
[1756887766294,37.08,210.28,210.26,5.41601636]
[1756887767488,0.72,210.32,210.26,5.41601636]
[1756887767687,3.84538073,210.45,210.31,6.91725794]
[1756887767879,6.91725794,210.4,210.35,6.91725794]
[1756887768088,37.1,210.39,210.36,6.91725794]
[1756887768304,37.1,210.38,210.35,6.91725794]
[1756887768785,37.1,210.38,210.36,6.91725794]
[1756887768986,0.06,210.37,210.36,6.91725794]
[1756887769585,0.06,210.37,210.36,11.6710134]
[1756887769984,0.78,210.37,210.34,4.75400626]
[1756887770191,0.72,210.36,210.32,7.20158108]
[1756887770501,0.06,210.37,210.33,6.91725794]
[1756887770675,0.78,210.37,210.33,6.91725794]
[1756887771279,0.06,210.37,210.34,11.67146541]
[1756887771601,0.06,210.37,210.36,6.91725794]
[1756887771989,37.14,210.37,210.36,6.91725794]
[1756887772493,37.14,210.37,210.36,12.3310134]
[1756887772877,37.14,210.37,210.36,11.6710134]
[1756887773074,37.14,210.37,210.36,4.75375546]
[1756887773282,37.14,210.37,210.36,11.6710134]
[1756887773902,37.16,210.37,210.36,11.6710134]
[1756887774797,37.16,210.37,210.36,6.91725794]
[1756887776407,37.16,210.37,210.35,4.75398145]
[1756887776585,37.16,210.37,210.36,6.91725794]
[1756887776786,37.88,210.37,210.34,6.91725794]
[1756887777584,0.72,210.36,210.34,6.91725794]
[1756887778700,37.16,210.37,210.35,4.75398145]
[1756887779006,37.88,210.37,210.35,4.75398145]
[1756887779688,37.16,210.37,210.35,4.75398145]
[1756887780011,0.72,210.36,210.31,6.91725794]
[1756887780211,0.72,210.35,210.31,6.91725794]
[1756887780384,44.07725794,210.37,210.31,6.91725794]
[1756887780385,0.72,210.34,210.31,6.91725794]
[1756887780583,37.04,210.33,210.32,6.91725794]
[1756887780888,37.04,210.33,210.32,11.6719175]
[1756887782009,37.04,210.33,210.31,6.91725794]
[1756887782807,0.72,210.32,210.3,4.75511174]
[1756887783009,0.72,210.32,210.3,11.67236968]
[1756887783216,37.04,210.33,210.27,0.28432314]
[1756887783217,0.72,210.31,210.27,0.28432314]
[1756887783385,0.72,210.31,210.28,4.75539494]
[1756887784102,0.72,210.31,210.27,2.84611352]
[1756887784310,0.72,210.31,210.26,4.75601636]
[1756887784501,0.72,210.31,210.27,2.84611352]
[1756887785012,0.72,210.3,210.26,4.75601636]
[1756887785192,37.76,210.29,210.26,4.75601636]
[1756887785514,37.04,210.29,210.26,7.60212988]
[1756887785806,37.04,210.29,210.26,4.75601636]
[1756887786014,37.04,210.29,210.26,7.63212988]
[1756887786311,37.04,210.28,210.26,7.63212988]
[1756887787312,37.04,210.28,210.27,2.84611352]
[1756887787313,37.02,210.28,210.27,2.84611352]
[1756887788498,37.02,210.28,210.26,4.78601636]
[1756887788499,37.02,210.28,210.26,7.63212988]
[1756887789232,37.74,210.28,210.26,4.78601636]
[1756887789439,37.02,210.28,210.26,4.78601636]
[1756887789636,37.04,210.32,210.27,3.79043666]
[1756887789935,0.06,210.33,210.31,2.84611352]
[1756887790123,0.06,210.33,210.32,2.84611352]
[1756887790327,37.06,210.35,210.33,0.28432314]
[1756887790540,37.06,210.35,210.34,3.50611352]
[1756887791227,37.06,210.35,210.34,2.84611352]
[1756887791422,0.06,210.36,210.34,2.84611352]
[1756887791604,37.12,210.36,210.35,7.60009497]
[1756887793231,37.12,210.36,210.35,4.75398145]
[1756887793615,37.81,210.36,210.35,4.75398145]
[1756887794130,37.81,210.36,210.35,7.60009497]
[1756887794329,37.12,210.36,210.35,7.60009497]
[1756887794536,0.06,210.36,210.35,8.55441811]
[1756887794917,0.06,210.36,210.35,7.88441811]
[1756887795231,0.06,210.36,210.35,8.55441811]
[1756887795443,0.06,210.36,210.35,7.88441811]
[1756887796132,0.06,210.36,210.35,7.60009497]
[1756887796329,0.06,210.36,210.35,4.75398145]
[1756887796639,0.06,210.36,210.35,7.60009497]
[1756887798024,0.75,210.36,210.33,4.7544335]
[1756887798217,0.69,210.35,210.34,2.84611352]
[1756887798421,0.06,210.36,210.34,2.84611352]
[1756887798626,0.75,210.36,210.34,2.84611352]
[1756887798828,0.69,210.35,210.33,7.60054702]
[1756887800231,0.69,210.35,210.28,11.88838336]
[1756887800232,0.69,210.34,210.26,2.60535166]
[1756887800454,37.71,210.33,210.29,2.84611352]
[1756887800619,0.69,210.32,210.29,2.84611352]
[1756887800817,0.69,210.31,210.29,2.84611352]
[1756887801440,0.69,210.31,210.27,4.75579017]
[1756887801630,0.69,210.31,210.29,2.84611352]
[1756887802225,0.69,210.31,210.26,0.03]
[1756887802434,0.69,210.31,210.29,2.84611352]
[1756887802961,0.69,210.3,210.28,2.84611352]
[1756887803442,37.02,210.33,210.29,4.75533786]
[1756887803639,0.69,210.32,210.29,4.75533786]
[1756887803833,0.69,210.31,210.29,4.75533786]
[1756887804150,0.69,210.31,210.29,7.60145138]
[1756887804644,0.69,210.31,210.29,4.75533786]
[1756887804936,0.69,210.34,210.3,2.84611352]
[1756887805127,37.69,210.33,210.3,2.84611352]
[1756887805330,37.0,210.32,210.31,4.75488564]
[1756887805843,37.69,210.32,210.31,4.75488564]
[1756887806347,37.0,210.32,210.31,7.60099916]
[1756887806732,37.0,210.32,210.31,4.75488564]
[1756887807246,37.69,210.32,210.31,4.75488564]
[1756887807542,37.69,210.32,210.29,7.63134081]
[1756887807746,0.69,210.31,210.29,0.03]
[1756887808245,0.69,210.3,210.29,0.03]
[1756887808447,0.69,210.3,210.29,4.78533786]
[1756887809327,0.69,210.3,210.29,0.03]
[1756887812534,3.53611352,210.3,210.29,0.03]
[1756887812845,8.29122526,210.3,210.29,0.03]
[1756887814854,21.88681927,210.3,210.29,0.03]
[1756887819928,47.88681927,210.3,210.29,0.03]
[1756887820134,42.44170753,210.27,210.26,0.03]
[1756887820426,76.57559401,210.27,210.26,0.03]
[1756887820630,43.13170753,210.27,210.26,0.03]
[1756887820840,66.51611352,210.27,210.26,0.03]
[1756887822537,71.27190369,210.27,210.26,0.03]
[1756887822856,34.29190369,210.27,210.26,0.03]
[1756887823056,84.8874977,210.27,210.26,0.03]
[1756887825651,86.49252453,210.27,210.26,0.03]
[1756887827448,88.39942034,210.27,210.26,0.03]
[1756887831273,51.39942034,210.27,210.26,0.03]
[1756887831455,87.70942034,210.27,210.26,0.03]
[1756887831764,56.95363017,210.27,210.26,0.03]
[1756887831971,55.04673436,210.27,210.26,0.03]
[1756887832154,59.80252453,210.27,210.26,0.03]